Workbook

Sheet 필지목록
A1: 일련 번호 | B1: 도면 번호 | C1: 가구 번호 | D1: 획지 번호 | E1: 가지번 | F1: 지 목 | G1: 주거부분 | J1: 비주거부분 | M1: 전체면적 (㎡) | N1: 단가 (원/㎡) | O1: 공급예정금액(원) (합계)
G2: 면 적 (㎡) | H2: 공급예정금액(원)(주거) | J2: 면 적 (㎡) | K2: 공급예정금액(원)(비주거)
H3: 단 가 | I3: 금 액 | K3: 단 가 | L3: 금 액
A4: 1 | B4: D20 | C4: 7 | D4: -3 | E4: 420-703 | F4: 대 | G4: 160.8 | H4: 2171000 | I4: 349096800 | J4: 107.2 | K4: 3054000 | L4: 327388800 | M4: =G4+J4 -> 268 | N4: =O4/M4 -> 2524200 | O4: =I4+L4 -> 676485600
A5: 2 | B5: D20 | C5: 7 | D5: -4 | E5: 420-704 | F5: 대 | G5: 160.8 | H5: 2171000 | I5: 349096800 | J5: 107.2 | K5: 3054000 | L5: 327388800 | M5: 268 | N5: 2524200 | O5: 676485600
A6: 3 | B6: D20 | C6: 7 | D6: -7 | E6: 420-707 | F6: 대 | G6: 156.6 | H6: 2246000 | I6: 351723600 | J6: 104.4 | K6: 3130000 | L6: 326772000 | M6: 261 | N6: 2599600 | O6: 678495600
A7: 4 | B7: D20 | C7: 7 | D7: -8 | E7: 420-708 | F7: 대 | G7: 160.2 | H7: 2196000 | I7: 351799200 | J7: 106.8 | K7: 3079000 | L7: 328837200 | M7: 267 | N7: 2549200 | O7: 680636400
A8: 5 | B8: D20 | C8: 7 | D8: -9 | E8: 420-709 | F8: 대 | G8: 160.2 | H8: 2196000 | I8: 351799200 | J8: 106.8 | K8: 3079000 | L8: 328837200 | M8: 267 | N8: 2549200 | O8: 680636400
A9: 6 | B9: D20 | C9: 7 | D9: -10 | E9: 420-710 | F9: 대 | G9: 160.2 | H9: 2196000 | I9: 351799200 | J9: 106.8 | K9: 3079000 | L9: 328837200 | M9: 267 | N9: 2549200 | O9: 680636400
A10: 7 | B10: D20 | C10: 7 | D10: -11 | E10: 420-711 | F10: 대 | G10: 160.2 | H10: 2196000 | I10: 351799200 | J10: 106.8 | K10: 3079000 | L10: 328837200 | M10: 267 | N10: 2549200 | O10: 680636400
A11: 8 | B11: D20 | C11: 11 | D11: -2 | E11: 420-1102 | F11: 대 | G11: 145.2 | H11: 2143000 | I11: 311163600 | J11: 96.8 | K11: 3015000 | L11: 291852000 | M11: 242 | N11: 2491800 | O11: 603015600
A12: 9 | B12: D20 | C12: 11 | D12: -3 | E12: 420-1103 | F12: 대 | G12: 139.2 | H12: 2143000 | I12: 298305600 | J12: 92.8 | K12: 3015000 | L12: 279792000 | M12: 232 | N12: 2491800 | O12: 578097600
A13: 10 | B13: D20 | C13: 11 | D13: -4 | E13: 420-1104 | F13: 대 | G13: 133.2 | H13: 2168000 | I13: 288777600 | J13: 88.8 | K13: 3040000 | L13: 269952000 | M13: =G13+J13 -> 222 | N13: =O13/M13 -> 2516800 | O13: 558729600
A14: 11 | B14: D20 | C14: 11 | D14: -6 | E14: 420-1106 | F14: 대 | G14: 153.6 | H14: 2168000 | I14: 333004800 | J14: 102.4 | K14: 3040000 | L14: 311296000 | M14: 256 | N14: 2516800 | O14: =I14+L14 -> 644300800
A15: 12 | B15: D20 | C15: 11 | D15: -7 | E15: 420-1107 | F15: 대 | G15: 146.4 | H15: 2168000 | I15: 317395200 | J15: 97.6 | K15: 3040000 | L15: 296704000 | M15: 244 | N15: 2516800 | O15: 614099200
A16: 13 | B16: D20 | C16: 11 | D16: -8 | E16: 420-1108 | F16: 대 | G16: 127.2 | H16: 2193000 | I16: 278949600 | J16: 84.8 | K16: 3065000 | L16: 259912000 | M16: 212 | N16: 2541800 | O16: 538861600
A17: 14 | B17: D20 | C17: 12 | D17: -1 | E17: 420-1201 | F17: 대 | G17: 171 | H17: 2168000 | I17: 370728000 | J17: 114 | K17: 3040000 | L17: 346560000 | M17: 285 | N17: 2516800 | O17: 717288000
A18: 15 | B18: D20 | C18: 12 | D18: -2 | E18: 420-1202 | F18: 대 | G18: 165.6 | H18: 2193000 | I18: 363160800 | J18: 110.4 | K18: 3065000 | L18: 338376000 | M18: 276 | N18: 2541800 | O18: 701536800
A19: 16 | B19: D20 | C19: 12 | D19: -3 | E19: 420-1203 | F19: 대 | G19: 179.4 | H19: 2182000 | I19: 391450800 | J19: 119.6 | K19: 3070000 | L19: 367172000 | M19: 299 | N19: 2537200 | O19: 758622800
A20: 17 | B20: D20 | C20: 14 | D20: -3 | E20: 420-1403 | F20: 대 | G20: 142.8 | H20: 2193000 | I20: 313160400 | J20: 95.2 | K20: 3065000 | L20: 291788000 | M20: 238 | N20: 2541800 | O20: 604948400
A21: 18 | B21: D20 | C21: 14 | D21: -4 | E21: 420-1404 | F21: 대 | G21: 133.2 | H21: 2263000 | I21: 301431600 | J21: 88.8 | K21: 3152000 | L21: 279897600 | M21: 222 | N21: 2618600 | O21: 581329200
A22: 19 | B22: D20 | C22: 15 | D22: -1 | E22: 420-1501 | F22: 대 | G22: 148.8 | H22: 2244000 | I22: 333907200 | J22: 99.2 | K22: 3135000 | L22: 310992000 | M22: 248 | N22: 2600400 | O22: 644899200
A23: 20 | B23: D20 | C23: 15 | D23: -2 | E23: 420-1502 | F23: 대 | G23: 155.4 | H23: 2143000 | I23: 333022200 | J23: 103.6 | K23: 3015000 | L23: 312354000 | M23: 259 | N23: 2491800 | O23: 645376200
A24: 21 | B24: D20 | C24: 15 | D24: -3 | E24: 420-1503 | F24: 대 | G24: 155.4 | H24: 2143000 | I24: 333022200 | J24: 103.6 | K24: 3015000 | L24: 312354000 | M24: 259 | N24: 2491800 | O24: 645376200
A25: 22 | B25: D20 | C25: 15 | D25: -5 | E25: 420-1505 | F25: 대 | G25: 156 | H25: 2238000 | I25: 349128000 | J25: 104 | K25: 3127000 | L25: 325208000 | M25: 260 | N25: 2593600 | O25: 674336000
A26: 23 | B26: D20 | C26: 16 | D26: -1 | E26: 420-1601 | F26: 대 | G26: 158.4 | H26: 2238000 | I26: 354499200 | J26: 105.6 | K26: 3127000 | L26: 330211200 | M26: 264 | N26: 2593600 | O26: 684710400
A27: 24 | B27: D20 | C27: 16 | D27: -2 | E27: 420-1602 | F27: 대 | G27: 172.8 | H27: 2168000 | I27: 374630400 | J27: 115.2 | K27: 3040000 | L27: 350208000 | M27: 288 | N27: 2516800 | O27: 724838400
A28: 25 | B28: D20 | C28: 16 | D28: -3 | E28: 420-1603 | F28: 대 | G28: 190.8 | H28: 2263000 | I28: 431780400 | J28: 127.2 | K28: 3152000 | L28: 400934400 | M28: 318 | N28: 2618600 | O28: 832714800
A29: 26 | B29: D20 | C29: 17 | D29: -2 | E29: 420-1702 | F29: 대 | G29: 157.2 | H29: 2143000 | I29: 336879600 | J29: 104.8 | K29: 3015000 | L29: 315972000 | M29: 262 | N29: 2491800 | O29: 652851600
A30: 27 | B30: D20 | C30: 17 | D30: -3 | E30: 420-1703 | F30: 대 | G30: 158.4 | H30: 2143000 | I30: 339451200 | J30: 105.6 | K30: 3015000 | L30: 318384000 | M30: 264 | N30: 2491800 | O30: 657835200
A31: 28 | B31: D20 | C31: 17 | D31: -4 | E31: 420-1704 | F31: 대 | G31: 159.6 | H31: 2143000 | I31: 342022800 | J31: 106.4 | K31: 3015000 | L31: 320796000 | M31: 266 | N31: 2491800 | O31: 662818800
A32: 29 | B32: D20 | C32: 17 | D32: -5 | E32: 420-1705 | F32: 대 | G32: 160.2 | H32: 2143000 | I32: 343308600 | J32: 106.8 | K32: 3015000 | L32: 322002000 | M32: 267 | N32: 2491800 | O32: 665310600
A33: 30 | B33: D20 | C33: 17 | D33: -7 | E33: 420-1707 | F33: 대 | G33: 162.6 | H33: 2143000 | I33: 348451800 | J33: 108.4 | K33: 3015000 | L33: 326826000 | M33: 271 | N33: 2491800 | O33: 675277800
A34: 31 | B34: D20 | C34: 17 | D34: -8 | E34: 420-1708 | F34: 대 | G34: 169.8 | H34: 2238000 | I34: 380012400 | J34: 113.2 | K34: 3127000 | L34: 353976400 | M34: 283 | N34: 2593600 | O34: 733988800
A35: 32 | B35: D20 | C35: 17 | D35: -9 | E35: 420-1709 | F35: 대 | G35: 165 | H35: 2246000 | I35: 370590000 | J35: 110 | K35: 3130000 | L35: 344300000 | M35: =G35+J35 -> 275 | N35: =O35/M35 -> 2599600 | O35: 714890000
A36: 33 | B36: D20 | C36: 17 | D36: -10 | E36: 420-1710 | F36: 대 | G36: 169.8 | H36: 2168000 | I36: 368126400 | J36: 113.2 | K36: 3040000 | L36: 344128000 | M36: 283 | N36: 2516800 | O36: 712254400
A37: 34 | B37: D20 | C37: 17 | D37: -11 | E37: 420-1711 | F37: 대 | G37: 180 | H37: 2168000 | I37: 390240000 | J37: 120 | K37: 3040000 | L37: 364800000 | M37: 300 | N37: 2516800 | O37: 755040000
A38: 35 | B38: D20 | C38: 17 | D38: -12 | E38: 420-1712 | F38: 대 | G38: 195 | H38: 2168000 | I38: 422760000 | J38: 130 | K38: 3040000 | L38: 395200000 | M38: 325 | N38: 2516800 | O38: 817960000
A39: 36 | B39: D20 | C39: 17 | D39: -13 | E39: 420-1713 | F39: 대 | G39: 210 | H39: 2168000 | I39: 455280000 | J39: 140 | K39: 3040000 | L39: 425600000 | M39: 350 | N39: 2516800 | O39: 880880000
A40: 37 | B40: D20 | C40: 17 | D40: -14 | E40: 420-1714 | F40: 대 | G40: 206.4 | H40: 2168000 | I40: 447475200 | J40: 137.6 | K40: 3040000 | L40: 418304000 | M40: 344 | N40: 2516800 | O40: 865779200
A41: 38 | B41: D20 | C41: 17 | D41: -15 | E41: 420-1715 | F41: 대 | G41: 184.2 | H41: 2168000 | I41: 399345600 | J41: 122.8 | K41: 3040000 | L41: 373312000 | M41: 307 | N41: 2516800 | O41: 772657600
A42: 39 | B42: D20 | C42: 17 | D42: -16 | E42: 420-1716 | F42: 대 | G42: 138 | H42: 2193000 | I42: 302634000 | J42: 92 | K42: 3065000 | L42: 281980000 | M42: 230 | N42: 2541800 | O42: 584614000
A43: 40 | B43: D21 | C43: 9 | D43: -4 | E43: 421-904 | F43: 대 | G43: 171.6 | H43: 2166000 | I43: 371685600 | J43: 114.4 | K43: 3057000 | L43: 349720800 | M43: =G43+J43 -> 286 | N43: =O43/M43 -> 2522400 | O43: =I43+L43 -> 721406400
A44: 41 | B44: D21 | C44: 17 | D44: -2 | E44: 421-1702 | F44: 대 | G44: 184.8 | H44: 2152000 | I44: 397689600 | J44: 123.2 | K44: 3028000 | L44: 373049600 | M44: =G44+J44 -> 308 | N44: =O44/M44 -> 2502400 | O44: 770739200
A45: 42 | B45: D21 | C45: 18 | D45: -1 | E45: 421-1801 | F45: 대 | G45: 168.6 | H45: 2177000 | I45: 367042200 | J45: 112.4 | K45: 3053000 | L45: 343157200 | M45: 281 | N45: 2527400 | O45: 710199400
A46: 43 | B46: D21 | C46: 18 | D46: -2 | E46: 421-1802 | F46: 대 | G46: 168.6 | H46: 2152000 | I46: 362827200 | J46: 112.4 | K46: 3028000 | L46: 340347200 | M46: 281 | N46: 2502400 | O46: 703174400
A47: 44 | B47: D21 | C47: 18 | D47: -5 | E47: 421-1805 | F47: 대 | G47: 159.6 | H47: 2152000 | I47: 343459200 | J47: 106.4 | K47: 3028000 | L47: 322179200 | M47: 266 | N47: 2502400 | O47: 665638400
